Cogmind - Beta 12 @@@ ROGUE MODE // 2023.03.30 @ 21:35:59 Player: Plexion Result: Destroyed by DAS Turret with DAS Cannon Performance ------------- Evolutions (0) 0 Regions Visited (3) 600 Robots Destroyed (21) 105 Value Destroyed (393) 393 Prototype IDs (24) 480 Alien Tech Used (0) 0 Bonus (300) 300 TOTAL SCORE: 1878 Bonus ------- Aligned with FarCom 300 Cogmind --------- Core Integrity 0/250 Matter 260/300 Energy 45/125 System Corruption 0% Temperature Cool (59) Movement Treading (320) Ox2 Location -10/Exiles Parts ------- > --- POWER (1) -------- Light Ion Engine > --- PROPULSION (2) --- Light Treads Armored Wheel > --- UTILITY (2) ------ High-capacity Storage Unit Targeting Computer > --- WEAPON (2) ------- Light EM Pulse Cannon > --- INVENTORY (20) --- Ion Engine Experimental Sensor Array Light Armor Plating Assault Rifle Shotgun Shotgun Shotgun Shotgun Improved Assault Rifle Improved Assault Rifle Improved Assault Rifle Makeshift Shrapnel Gun Flail Peak State ------------ > --- POWER ------------ Light Ion Engine > --- PROPULSION ------- Light Treads Light Treads > --- UTILITY ---------- High-capacity Storage Unit Targeting Computer > --- WEAPON ----------- Improved Assault Rifle Improved Assault Rifle > --- INVENTORY -------- Ion Engine Light Treads Armored Wheel Experimental Sensor Array Light Armor Plating Light EM Pulse Cannon Light EM Pulse Cannon Assault Rifle Shotgun Shotgun Shotgun Shotgun Improved Assault Rifle Makeshift Shrapnel Gun Flail Deploy-a-Sentry Deploy-a-Sentry [Rating: 16] Favorites ----------- Power Ion Engine Engine Ion Engine Propulsion Light Treads Treads Light Treads Wheel Armored Wheel Utility Targeting Computer Storage Large Storage Unit Processor Targeting Computer Weapon Improved Assault Rifle Energy Gun Small Laser Energy Cannon Light EM Pulse Cannon Ballistic Gun Improved Assault Rifle Build | -11 -10 -10 -10 ------- Run | Jun Mat Min Exi Slots Evolved . | . . . . Power . | . . . . Propulsion . | . . . . Utility . | . . . . Weapon . | . . . . Parts Attached 17 | 6 5 1 5 Power 2 | 1 . 1 . Engine 2 | 1 . 1 . Core . | . . . . Reactor . | . . . . Propulsion 4 | 2 . . 2 Treads 3 | 2 . . 1 Leg . | . . . . Wheel 1 | . . . 1 Hover . | . . . . Flight . | . . . . Utility 4 | . 3 . 1 Device . | . . . . Storage 3 | . 2 . 1 Processor 1 | . 1 . . Hackware . | . . . . Protection . | . . . . Artifact . | . . . . Weapon 7 | 3 2 . 2 Energy Gun 3 | 3 . . . Energy Cannon 2 | . . . 2 Ballistic Gun 2 | . 2 . . Ballistic Cannon . | . . . . Launcher . | . . . . Special Weapon . | . . . . Impact Weapon . | . . . . Slashing Weapon . | . . . . Piercing Weapon . | . . . . Special Melee Weapon . | . . . . Unidentified Prototypes 1 | . 1 . . Parts Lost 3 | . . . 3 Power . | . . . . Propulsion 2 | . . . 2 Utility . | . . . . Weapon 1 | . . . 1 Highest Loss Streak 1 | . . . 1 To Critical Strikes 1 | . . . 1 Average Slot Usage (%) 99 | . 99 100 99 Engine 14 | . 14 14 14 Treads 27 | . 28 28 26 Storage 13 | . 13 14 14 Processor 13 | . 13 14 14 Energy Gun 1 | . 4 . . Ballistic Gun 26 | . 23 28 27 Naked Turns . | . . . . Heaviest Build 51 | 8 31 31 51 Greatest Support 40 | 40 40 40 40 Greatest Overweight (x) 4 | . . . 4 Average Overweight (x) . | . . . . Largest Inventory Capacity 20 | 5 15 15 20 Average Capacity 15 | 5 14 15 18 Most Carried 18 | 3 13 15 18 Average Carried 11 | 1 7 14 15 Final Capacity 20 | 5 15 15 20 Final Carried 15 | 3 13 15 13 Class Distribution -------------------- 100% | Mutant Dominant Class ---------------- Mutant | -10/Materials Mutant | -10/Mines Mutant | -10/Exiles Resources | -11 -10 -10 -10 ----------- Run | Jun Mat Min Exi Matter Collected 648 | 158 284 94 112 Remotely . | . . . . Salvage Created 676 | . 511 165 . Parts 51 | . 41 10 . Haulers Intercepted 1 | . 1 . . Recyclers Shooed . | . . . . Parts Field Recycled . | . . . . Retrieved Matter . | . . . . Parts Self-Destructed . | . . . . Prevented . | . . . . Kills | -11 -10 -10 -10 ------- Run | Jun Mat Min Exi Combat Hostiles Destroyed 10 | . 7 2 1 Guns 10 | . 7 2 1 Classes Destroyed 8 | . 8 . . Worker 1 | . 1 . . Tunneler 2 | . 1 1 . Hauler 1 | . 1 . . Recycler 2 | . 1 1 . Operator 2 | . 2 . . Watcher 3 | . 3 . . Swarmer 3 | . 3 . . Grunt 6 | . 4 2 . Best Kill Streak 4 | . 4 2 1 Combat Bots Only 3 | . 3 2 1 Max Kills in Single Turn 2 | . 2 1 1 Gunslinging 1 | . 1 . . Exploded . | . . . . Melee . | . . . . Uniques/NPCs Destroyed 2 | . . . 2 EX-BIN (-10/Exiles) 8R-AWN (-10/Exiles) Combat | -11 -10 -10 -10 -------- Run | Jun Mat Min Exi Damage Taken 1144 | . 196 102 846 Core 279 | . 15 . 264 Absorbed by Shields . | . . . . Core Remaining (%) 100 | 100 . . . Volleys Fired 71 | . 33 14 24 Largest 2 | . 2 2 2 Hottest 112 | . 80 46 112 Shots Fired 138 | . 66 28 44 Gun 133 | . 66 28 39 Cannon 5 | . . . 5 Launcher . | . . . . Special . | . . . . Kinetic 111 | . 44 28 39 Thermal 22 | . 22 . . Explosive . | . . . . Electromagnetic 5 | . . . 5 Robot Hit Streak 35 | . 12 7 35 Robot Miss Streak 3 | . 3 1 1 Penetration Max . | . . . . Secondary Targets 3 | . 3 . . Max Gunslinging Chain 1 | . 1 . . Shots Hit Robots 106 | . 47 20 39 Core Hits 39 | . 23 5 11 Critical Kills . | . . . . Critical Parts Destroyed . | . . . . Critical Strikes . | . . . . Melee Attacks . | . . . . Impact . | . . . . Slashing . | . . . . Piercing . | . . . . Sneak Attacks . | . . . . Combat Hostiles . | . . . . Follow-up Attacks . | . . . . Damage Inflicted 1534 | . 653 326 555 Guns 1458 | . 653 326 479 Cannons 76 | . . . 76 Explosions . | . . . . Melee . | . . . . Ramming . | . . . . Kinetic 1307 | . 502 326 479 Thermal 151 | . 151 . . Explosive . | . . . . Electromagnetic 76 | . . . 76 Impact . | . . . . Slashing . | . . . . Piercing . | . . . . Highest Corruption . | . . . . Average Corruption . | . . . . Corruption Purged . | . . . . Corruption Blocked . | . . . . Overload Shots . | . . . . Overflow Damage . | . . . . Projectiles . | . . . . Explosions . | . . . . Melee . | . . . . Knockbacks . | . . . . Impact . | . . . . Kinetic . | . . . . Secondary . | . . . . Self-Inflicted Damage . | . . . . Shots . | . . . . Rammed . | . . . . Targets Rammed . | . . . . Kicked . | . . . . Crushed . | . . . . Highest Temperature 213 | . 213 4 59 Average Temperature 78 | . 97 2 33 Received Heat Transfer 198 | . 138 60 . Siege Activations . | . . . . Robots Corrupted . | . . . . Combat Hostiles . | . . . . Parts Fried . | . . . . Impact Corruptions . | . . . . Robots Melted . | . . . . Combat Hostiles . | . . . . Parts Melted 1 | . 1 . . Heat Transferred 350 | . 350 . . Parts Sabotaged . | . . . . Parts Stolen . | . . . . Parts Stripped . | . . . . Power Chain Reactions . | . . . . Missiles Intercepted . | . . . . Alert | -11 -10 -10 -10 ------- Run | Jun Mat Min Exi Peak Influence 127 | . 127 75 . Initial . | . . . . Average 37 | . 46 27 . Maximum Alert Level . | . . . . Low Security (%) 100 | 100 100 100 . Level 1 . | . . . . Level 2 . | . . . . Level 3 . | . . . . Level 4 . | . . . . Level 5 . | . . . . High Security . | . . . . Max Security . | . . . . Squads Dispatched . | . . . . Investigation . | . . . . Extermination . | . . . . Reinforcement . | . . . . Assault . | . . . . Garrison . | . . . . Intercept . | . . . . Searches Triggered . | . . . . Construction Impeded . | . . . . Haulers Reinforced . | . . . . Active Scanning Responses . | . . . . Cargo Convoy Interrupts . | . . . . Stealth | -11 -10 -10 -10 --------- Run | Jun Mat Min Exi Distress Signals . | . . . . Communications Jammed . | . . . . Distress Signals . | . . . . Times Spotted 39 | . 13 2 24 Peak Tracking Total 9 | . 4 2 9 Tactical Retreats 2 | . . . 2 Traps | -11 -10 -10 -10 ------- Run | Jun Mat Min Exi Traps Triggered . | . . . . Indirectly . | . . . . Trap Hack Attempts . | . . . . Triggered . | . . . . Disarmed . | . . . . Reprogrammed . | . . . . Reused . | . . . . Traps Extracted . | . . . . Installed . | . . . . Triggered . | . . . . Machines | -11 -10 -10 -10 ---------- Run | Jun Mat Min Exi Machines Disabled 5 | . . 1 4 Max in Single Turn 1 | . . 1 1 Machines Repaired . | . . . . Machines Sabotaged . | . . . . Overloaded Fab Kills . | . . . . Hacking | -11 -10 -10 -10 --------- Run | Jun Mat Min Exi Machines Accessed 7 | . 5 . 2 Terminals 5 | . 5 . . Fabricators . | . . . . Repair Stations . | . . . . Recycling Units . | . . . . Scanalyzers . | . . . . Garrison Access . | . . . . Total Hacks 10 | . 8 . 2 Successful 6 | . 4 . 2 Failed 3 | . 3 . . Catastrophic 1 | . 1 . . Database Lockouts 1 | . 1 . . Manual 9 | . 8 . 1 Terminals 8 | . 8 . . Fabricators . | . . . . Repair Stations . | . . . . Recycling Units . | . . . . Scanalyzers . | . . . . Garrison Access . | . . . . Terminal Hacks 6 | . 4 . 2 Record 1 | . . . 1 Robot Analysis 2 | . 2 . . Zone Layout 2 | . 2 . . EX-Prototype ID Bank 1 | . . . 1 Fabricator Hacks . | . . . . Repair Station Hacks . | . . . . Recycling Unit Hacks . | . . . . Scanalyzer . | . . . . Garrison Access Hacks . | . . . . Unauthorized Hacks . | . . . . Terminals . | . . . . Fabricators . | . . . . Repair Stations . | . . . . Recycling Units . | . . . . Scanalyzers . | . . . . Garrison Access . | . . . . Data Cores Recovered 1 | . 1 . . Used . | . . . . Hacking Detections 4 | . 4 . . Full Trace Events 1 | . 1 . . Feedback Events . | . . . . Feedback Blocked . | . . . . Robot Schematics Acquired . | . . . . Robots Built . | . . . . Authchips . | . . . . Time . | . . . . Total Robot Build Rating . | . . . . Part Schematics Acquired . | . . . . Parts Built . | . . . . Authchips . | . . . . Time . | . . . . Total Part Build Rating . | . . . . Parts Repaired . | . . . . Time . | . . . . Parts Recycled . | . . . . Recycled Matter . | . . . . Retrieved Matter . | . . . . Retrieved Components . | . . . . Parts Scanalyzed . | . . . . Part Schematics Acquired . | . . . . Parts Damaged . | . . . . Bothacking | -11 -10 -10 -10 ------------ Run | Jun Mat Min Exi Used RIF Installer . | . . . . Robots Hacked . | . . . . Non-combat . | . . . . Combat . | . . . . Robot Hacks Applied . | . . . . Relay Couplers Released . | . . . . Fabnet Peak Effective % . | . . . . Robots Rewired . | . . . . Allies Hacked . | . . . . Hacks Repelled . | . . . . Allies | -11 -10 -10 -10 -------- Run | Jun Mat Min Exi Total Allies 3 | . . 3 . Largest Group 3 | . . 3 3 Highest-Rated Group 40 | . . 40 40 Highest-Rated Ally 16 | . . 16 16 Total Orders 8 | . . . 8 STAY 7 | . . . 7 FOLLOW 1 | . . . 1 Ally Attacks 39 | . . . 39 Total Damage 1578 | . . . 1578 Kills 8 | . . . 8 Allies Corrupted . | . . . . Allies Melted . | . . . . Turrets Deployed 3 | . . . 3 Intel | -11 -10 -10 -10 ------- Run | Jun Mat Min Exi Robot Analysis Total 2 | . 2 . . Derelict Logs Recovered 1 | . . 1 . Drone Launches . | . . . . Drone Recoveries . | . . . . Exploration | -11 -10 -10 -10 ------------- Run | Jun Mat Min Exi Turns Passed 3271 | 76 1272 889 1034 Spaces Moved 1705 | 43 716 526 420 Core 3 | 3 . . . Treads 1678 | 40 716 526 396 Legs . | . . . . Wheels 24 | . . . 24 Hover . | . . . . Flight . | . . . . Fastest Speed 50 | 50 160 160 150 Average Speed 170 | 152 160 160 204 Slowest Speed 240 | 160 160 160 240 Overloaded Moves . | . . . . Propulsion Burnouts . | . . . . Robots Hopped . | . . . . Cave-ins Triggered . | . . . . Exploration Rate (%) 63 | 4 93 92 66 Regions Visited 3 Branch Regions 2 Pre-discovered Areas 1 | . . . 1 Known Exits Taken . | . . . . Unknown Exits Taken 3 | 1 1 1 . Scrap Searched 1 | . . 1 . Spaces Dug . | . . . . Terrain Destroyed . | . . . . Melee . | . . . . Projectile . | . . . . AOE . | . . . . Terrain Rammed . | . . . . Walls Destroyed . | . . . . Machines Disabled . | . . . . Actions | -11 -10 -10 -10 --------- Run | Jun Mat Min Exi Total 1929 | 51 778 547 553 Wait 104 | . 5 2 97 Move 1702 | 42 715 525 420 Hop . | . . . . Pick Up 22 | 3 13 3 3 Fast Attach 8 | 5 3 . . Attach 3 | . 1 . 2 Detach 2 | . 2 . . Swap 6 | 1 1 1 3 Drop 11 | . 5 2 4 Fire 71 | . 33 14 24 Melee . | . . . . Ram . | . . . . Kick . | . . . . Crush . | . . . . Escape Stasis . | . . . . Rewire . | . . . . Trap . | . . . . Miscellaneous . | . . . . Route ------- -11/Junkyard -10/Materials (discovered 4 exits: [*Mat x3] / [*Min]) -10/Mines (discovered 3 exits: [*Mat x2] / *Exi) -10/Exiles History --------- Turn | Location | Event 44 | -11/Junkyard | Discovered new exit (range 15) 77 | -11/Junkyard | Entered Materials 243 | -10/Materials | Discovered new exit (range 16) 309 | -10/Materials | Build established: Mutant 417 | -10/Materials | Discovered new exit (range 14) 563 | -10/Materials | Discovered new exit (range 15) 897 | -10/Materials | Discovered new exit (range 6) 931 | -10/Materials | Central database locked down 1349 | -10/Materials | Entered Mines 1410 | -10/Mines | Met a Derelict bent on vengeance 1442 | -10/Mines | A weapon hastily lodged in a ceiling crevice suddenly fell to the ground 1492 | -10/Mines | Discovered new exit (range 7) 1680 | -10/Mines | Found a damaged Exp. Sensor Array with a note attached 1687 | -10/Mines | Found Prototype Device 1855 | -10/Mines | Learned location of 2 exits from Materials 1999 | -10/Mines | Discovered new exit (range 7) 2011 | -10/Mines | Assisted by bots powering up and referring to "LRC-V3" 2205 | -10/Mines | Deemed a non-threat by the Exiles lab entrance 2230 | -10/Mines | Discovered new exit (range 5) 2238 | -10/Mines | Entered Exiles 2238 | -10/Exiles | Accompanied by 3 allies 2278 | -10/Exiles | Met 8R-AWN 2302 | -10/Exiles | Met EX-HEX 2363 | -10/Exiles | Met EX-DEC 2406 | -10/Exiles | Met EX-BIN 2440 | -10/Exiles | Learned location of Zion (-7) 2688 | -10/Exiles | Aligned with FarCom system 2691 | -10/Exiles | Given EX-Vault access code 2751 | -10/Exiles | Opened EX-Vault 2763 | -10/Exiles | Found Deploy-a-Sentry 2766 | -10/Exiles | Found Deploy-a-Sentry 2769 | -10/Exiles | Found Deploy-a-Sentry 2821 | -10/Exiles | Warned to stay clear of 0b10 Research branches 2940 | -10/Exiles | DAS Turret deployed 2943 | -10/Exiles | DAS Turret deployed 2946 | -10/Exiles | DAS Turret deployed 3026 | -10/Exiles | Attacked by the Exiles 3037 | -10/Exiles | Allies destroyed EX-BIN 3203 | -10/Exiles | Core integrity fell below 50% 3216 | -10/Exiles | Destroyed 8R-AWN 3267 | -10/Exiles | Core integrity fell below 20% 3272 | -10/Exiles | Destroyed by DAS Turret with DAS Cannon Last Messages --------------- 03189_ Penetrated by HV Slug. 03189_ HV Slug penetrates Earth. 03189_ Penetrated by HV Slug. 03189_ HV Slug penetrates Earth. 03193_ Penetrated by HV Slug. 03193_ HV Slug penetrates Earth. 03193_ Penetrated by HV Slug. 03197_ Critical hit (Destroy). 03197_ Lgt. Treads destroyed. 03202_ Penetrated by HV Slug. 03210_ HV Slug penetrates Wall. 03214_ Penetrated by HV Slug. 03216_ Destroyed Prototype Protection. 03216_ 8R-AWN destroyed. 03233_ Acquired 52 matter. 03239_ Acquired 60 matter. 03259_ Machine disabled. 03266_ Knocked back. 03268_ Lgt. EM Pulse Cannon destroyed. 03270_ DAS Turret misfires. Map ----- +----------------------------------------------------+ | ?????????????????????????????????????#"###??# | | ????????????????????????????????????????????# | | ????????????????????????????????????????????# | | ???????????????????????????????????????????## | | ???????????#######?????????????????????????#" | | ####???????#!!! "#?????????????????????????#" | | #""#??????# "#?????????????????????????#" | | ??????# "#?????????????????????????#" | | #????## ""#?????????????#???????????#" | | #####" ""#???????????? """????????#" | | ##" ""?????????????" """????????## | | #"" #??????????????" ?????????# | | # #?????????????"" ?????????#" | | ???# ##????????????"" "#????????#" | | ???### "#???????????? ""?????????#" | | #####" ###???????????" "?????????##" | | !""""" ##??????????# #????????##"" | | ###" !######???### ###?######"" | | #?#; * [==%*""#####X# #"###""""""" | | ##?## [ ! [ *= """""" " "" | | """"""#"#???#"# ! "" """ " | | ####### #???##"# % " " | | ??????# #?????#### % % !!! | | ??????# #????????### % %!%% | | ??????# #??????????## %% % !!= | | ??????# #???????????## % @ % % ! | | ??????# #????????????##" %% | | ??????# #?????????????#"" % % """""" | | ??????? ?????????????##" %%######""" | | ??????? ?????????????#"" ""##????#### | | ??????? ?????????????#""" ""##????????? | | ??????? ?????????????""" """##?????????? | | ??????? ?????????????""" ""#??????????? | | ??????? ????????????#"" ########??### | | ??????? ????????????#""" % ## ####"" | | ?????????????????????"" t % """" | | ?????????????????????#"" | | ?????????????????????#"""" % | | ??????????????????????# | | ??????????????????????#" " | | ??????????????????????#"""" ""## ## | | ??????????????????????#"" ""#### ## | | ???????????????????????" """"##??# #? | | ???????????????????????""" """#???# #? | | ???????????????????????? ""##???! ? | | ????????????????????????"" """##???#" | | ?????????????????????????""" #?????#" | | ???????????????????????????""" #??????#!!""! | | ???????????????????????????? ????????##### | | ????????????????????????????#### #????????????? | +----------------------------------------------------+ Best States ------------- Heat Dissipation 25 Energy Generation 10 Energy Capacity 250 Matter Stores 300 Matter Capacity 300 Sight Range 16 Terrain Scan Density 10 Evasion (%) 40 Targeting Accuracy 5 Recoil Reduction 2 Item Schematics ----------------- None Robot Schematics ------------------ None Fabricated ------------ Nothing Alien Tech Used ----------------- None Achievements -------------- None Challenges ------------ None Game ------ Seed GravitonDamperClaymores Manual? 0 Play Time 00:12:07 Cumulative 379.4 hours Start 2023.03.30 @ 21:23:30 End 2023.03.30 @ 21:35:59 Sessions 1 Manual Loads 0 Difficulty Rogue Special Mode None Game No. 470 Rogue 383 Adventurer 87 Explorer 0 Win Type - Total 18 Types 7/0/9/1/1/0/0/0/0 Lore% 87 Gallery% 91 Achievement% 73 Wizard Run 0 Options --------- ASCII 0 Keyboard 1 Movement Numpad Keybinds 0 Fullscreen 1 Font 18/SmallcapsGlow Map View 76x50 Tactical HUD 1 Map Filters NONE Filters NONE Steam 1 RUN: c2ee4620-4043-476a-9988-d6f49b7a5a0c